[Event "87th Tata Steel Masters 2025"]
[White "Erigaisi,Arjun Kumar"]
[Black "Keymer,Vincent"]
[Site "Wijk aan Zee"]
[Round "10.1"]
[Annotator "TA"]
[Result "1/2-1/2"]
[Date "2025.01.29"]
[WhiteElo "2801"]
[BlackElo "2733"]
[PlyCount "76"]
[TimeControl "60"]

{[%evp 16,76,15,25,46,26,28,2,29,21,23,4,14,0,17,0,16,34,29,30,40,30,27,26,31,25,29,28,25,22,28,30,22,18,11,10,33,21,31,16,32,19,8,8,24,2,6,10,16,0,0,0,0,0,0,0,0,0,0,0,0,0,0]} 1. e4 {[%emt 0:0:11]} e5 {[%emt 0:0:4]} 2. Nf3 {[%emt 0:0:6]} Nc6 {[%emt 0:0:2]} 3. Bb5 {[%emt 0:0:7]} a6 {[%emt 0:0:4]} 4. Ba4 {[%emt 0:0:4]} Nf6 {[%emt 0:0:11]} 5. O-O {[%emt 0:0:9]} Be7 {[%emt 0:0:15]} 6. Re1 {[%emt 0:0:8]} b5 {[%emt 0:0:33]} 7. Bb3 {[%emt 0:0:6]} O-O {[%emt 0:0:5]} 8. h3 {[%emt 0:0:7]} Bb7 {[%emt 0:0:43]} 9. d3 {[%emt 0:0:8]} d5 {[%emt 0:0:17] seems to push 9...d6 aside. C88: Closed Ruy Lopez: Anti-Marshall Systems.} 10. exd5 {[%emt 0:0:7]} Nxd5 {[%emt 0:0:3]} 11. Nbd2 {[%emt 0:0:8][%cal Ya2a4]} Nd4 {[%emt 0:0:37]} 12. Nxe5 {[%emt 0:0:18]} (12. Nxd4 exd4 13. Qf3 Ra7 14. Qf5 g6 15. Qe5 Bf6 16. Qg3 Ne3 17. Ne4 Bxe4 18. dxe4 c5 19. c3 Nc4 20. a4 Rd7 21. axb5 axb5 22. cxd4 Rxd4 23. Bxc4 Rxc4 {½-½ Erigaisi,A (2756)-Keymer,V (2726) Sigeman & Co 29th 2024 (5)} )c5 {[%emt 0:5:12] Black sacrificed a pawn} 13. c3 {[%emt 0:0:12]} Nxb3 {[%emt 0:0:5]} 14. axb3 {[%emt 0:0:6]} Re8 {[%emt 0:21:29]} 15. Ndf3 {[%emt 0:0:50]} Bd6 $146 {[%emt 0:11:42]} (15... f6 16. Ng4 Qd7 17. d4 cxd4 18. Qxd4 Bd6 19. Bh6 Rxe1+ 20. Rxe1 Rd8 21. Ne3 Bc7 22. Nxd5 Bxd5 23. Bf4 Bxf3 24. Qxd7 Rxd7 25. Bxc7 Rxc7 26. gxf3 {½-½ Gonzalez Cubertier,J (2374)-Woznica,M (2376) POL-CUB email 2022} )16. d4 {[%emt 0:1:8]} Qc7 {[%emt 0:5:40]} 17. Bd2 {[%emt 0:0:55]} f6 {[%emt 0:10:18]} 18. Nd3 {[%emt 0:0:44]} c4 {[%emt 0:1:39]} 19. bxc4 {[%emt 0:0:12]} bxc4 {[%emt 0:5:56] [#]} 20. Nc5 {[%emt 0:0:29]} Bxc5 {[%emt 0:1:31]} 21. dxc5 {[%emt 0:0:8]} Qxc5 {[%emt 0:1:4]} 22. Nd4 {[%emt 0:5:33]} Rxe1+ {[%emt 0:3:44]} 23. Qxe1 {[%emt 0:0:36]} Nc7 {[%emt 0:1:32][%cal Yd5c7,Yc7b5,Yb5d6,Yd6f5][%mdl 32] Prevents Qe6+} 24. Qe2 {[%emt 0:7:6]} Re8 {[%emt 0:5:11]} 25. Qg4 {[%emt 0:0:9]} Bc8 {[%emt 0:4:29]} 26. Qg3 {[%emt 0:5:0]} Nb5 {[%emt 0:2:1]} 27. Be3 {[%emt 0:1:13][%cal Yd4e6]} Qd5 {[%emt 0:3:15]} 28. Nc2 {[%emt 0:7:7]} Nd6 {[%emt 0:0:36]} 29. Nb4 {[%emt 0:1:30]} Qe6 {[%emt 0:0:8]} 30. Qf4 {[%emt 0:1:41]} ({Inferior is} 30. Nxa6 Nf5 31. Qf4 Bxa6 $19 )g5 {[%emt 0:6:14] The position is equal.} 31. Qg4 {[%emt 0:7:56]} Nf5 {[%emt 0:6:12]} 32. Bd2 {[%emt 0:10:5]} (32. Bd4 $5 )Qf7 {[%emt 0:5:43]} 33. Re1 {[%emt 0:1:56]} (33. Nxa6 Nh4 34. Qg3 Bb7 $19 )Rxe1+ {[%emt 0:0:31]} 34. Bxe1 {[%emt 0:0:5]} Qe6 {[%emt 0:0:43]} 35. Bd2 {[%emt 0:5:49]} Bb7 {[%emt 0:2:8]} 36. Nc2 {[%emt 0:7:15]} Qe4 {[%emt 0:3:48]} 37. Qxe4 {[%emt 0:0:41]} Bxe4 {[%emt 0:0:5]} 38. Ne3 {[%emt 0:0:5]} Nxe3 {[%emt 0:0:38] Weighted Error Value: White=0.06 (flawless) /Black=0.06 (flawless)   Inaccurate:     	White=1     	Black=1      OK:         	White=8     	Black=14} 1/2-1/2

[Event "87th Tata Steel Masters 2025"]
[White "Harikrishna,Pentala"]
[Black "Caruana,Fabiano"]
[Site "Wijk aan Zee"]
[Round "10.2"]
[Annotator "TA"]
[Result "1/2-1/2"]
[Date "2025.01.29"]
[WhiteElo "2695"]
[BlackElo "2803"]
[PlyCount "136"]
[TimeControl "60"]

{[%evp 9,136,16,25,0,17,15,23,23,20,14,24,0,28,27,8,0,0,0,0,0,0,0,0,-29,-10,-19,-19,-43,-18,-29,-27,-52,-45,-37,-36,-51,-49,-51,-48,-53,-50,-47,-50,-53,-52,-54,-27,-25,-32,-38,-22,-23,-18,-36,-4,-19,-12,-20,-22,-19,-9,-11,-8,-19,-19,-29,-30,-110,-110,-123,-118,-122,-125,-111,-119,-161,-169,-243,-243,-243,-243,-268,-268,-268,-101,-101,-101,-243,-218,-131,-125,-125,-125,-125,0,-117,0,-117,-117,-117,-8,-8,-8,-8,-8,-8,-8,-8,-8,-8,-8,-8,0,-8,-8,-8,-8,-8,-8,-8,-8,-8,-8,-8,-8,-8,0,-14,-8]} 1. e4 {[%emt 0:0:8]} c5 {[%emt 0:0:6]} 2. Nf3 {[%emt 0:0:5]} d6 {[%emt 0:0:4]} 3. Nc3 {[%emt 0:0:6]} a6 {[%emt 0:0:53]} 4. d4 {[%emt 0:1:22]} cxd4 {[%emt 0:0:19]} 5. Qxd4 {[%emt 0:0:7]} Nc6 {[%emt 0:0:7]} 6. Qe3 {[%emt 0:0:32] B50: Sicilian: 2...d6, Miscellaneous.} g6 {[%emt 0:4:7]} 7. Be2 {[%emt 0:2:4]} Bh6 {[%emt 0:0:31]} 8. Qd3 {[%emt 0:0:8] White has an edge.} Bg7 {[%emt 0:0:13]} 9. O-O {[%emt 0:5:26]} Bg4 {[%emt 0:18:15]} 10. Bg5 {[%emt 0:9:36]} h6 {[%emt 0:11:44][%cal Yg4f3]} 11. Be3 {[%emt 0:8:31]} Rc8 $146 {[%emt 0:8:4]} (11... Nf6 12. Nd5 Bxf3 13. Nxf6+ Bxf6 14. Bxf3 Ne5 15. Qe2 Nxf3+ 16. Qxf3 Bxb2 17. Rab1 Be5 18. Rxb7 Qc8 19. Rfb1 Qxc2 20. a3 h5 {½-½ Vogt,I-Meissen,F Team-ch L14K1-R(4-5) 2016} )12. Qd2 {[%emt 0:15:58]} Bxc3 {[%emt 0:14:20]} 13. Qxc3 {[%emt 0:3:48]} Nf6 $1 {[%emt 0:0:4]} 14. Qb3 {[%emt 0:8:58]} Qd7 {[%emt 0:7:20]} 15. h3 {[%emt 0:7:19]} Be6 {[%emt 0:0:53]} 16. Qc3 {[%emt 0:6:29]} g5 {[%emt 0:1:44]} 17. Rad1 {[%emt 0:19:23]} g4 {[%emt 0:0:51]} 18. hxg4 {[%emt 0:0:6]} Bxg4 {[%emt 0:0:3]} 19. Bf4 {[%emt 0:0:22][%cal Yf4d6]} Rg8 {[%emt 0:11:2]} 20. Qe3 {[%emt 0:1:21]} Qe6 {[%emt 0:5:40][%csl Ya2,Ye4]} 21. Rfe1 {[%emt 0:7:38]} Nb4 {[%emt 0:3:41]} 22. Nd4 {[%emt 0:0:54] [#]} Nxc2 $1 {[%emt 0:0:48]} 23. Nxe6 {[%emt 0:0:31]} Nxe3 {[%emt 0:0:2]} 24. Bxe3 {[%emt 0:1:9]} Bxe6 {[%emt 0:0:5]} 25. f3 {[%emt 0:1:8]} Bxa2 {[%emt 0:5:0]} 26. Rc1 {[%emt 0:1:4]} Kd7 {[%emt 0:3:18]} 27. Bxh6 {[%emt 0:0:43]} d5 {[%emt 0:5:25]} 28. e5 {[%emt 0:2:4] aiming for Rxc8.} Rxc1 {[%emt 0:0:11]} 29. Rxc1 {[%emt 0:0:50]} Ne8 {[%emt 0:0:19]} 30. Be3 {[%emt 0:0:59]} Nc7 {[%emt 0:0:10]} 31. f4 {[%emt 0:0:46]} e6 {[%emt 0:3:50]} 32. Kf2 {[%emt 0:1:39] [#]} Bc4 $1 {[%emt 0:0:27]} 33. Bxc4 {[%emt 0:1:41]} (33. Bh5 Rg7 )dxc4 {[%emt 0:0:2]} 34. Rxc4 $11 {[%emt 0:0:8][%mdl 4096] Endgame KRB-KRN} Nd5 {[%emt 0:0:3][%cal Yg8g2]} 35. Bd2 {[%emt 0:0:11]} b5 {[%emt 0:0:20]} 36. Rc1 {[%emt 0:0:34]} b4 {[%emt 0:0:3]} 37. Ra1 {[%emt 0:1:37]} Ra8 {[%emt 0:0:10]} 38. Ra5 {[%emt 0:2:34]} (38. Rc1 $11 )Kc6 $17 {[%emt 0:0:3]} 39. Be3 {[%emt 0:0:5]} Nxe3 $1 {[%emt 0:1:5]} 40. Kxe3 {[%emt 0:0:5] KR-KR} Kb6 {[%emt 0:0:2]} 41. Ra1 {[%emt 0:51:2]} a5 {[%emt 0:56:48]} 42. g4 {[%emt 0:0:0] [#]} Kb5 $1 {[%emt 0:0:0]} 43. b3 {[%emt 0:0:0] [#]} (43. Kd2 $142 )a4 $1 $19 {[%emt 0:0:0]} 44. bxa4+ {[%emt 0:0:0]} Rxa4 {[%emt 0:0:0]} 45. Rb1 {[%emt 0:0:0]} Ra3+ {[%emt 0:0:0]} 46. Kd2 {[%emt 0:0:0]} Rg3 $2 {[%emt 0:0:0]} (46... Kc4 $19 {and Black stays clearly on top.} 47. Rc1+ Rc3 )47. g5 $17 {[%emt 0:0:0]} b3 {[%emt 0:0:0]} 48. Rh1 {[%emt 0:0:0]} (48. Rf1 $17 )Kc4 {[%emt 0:0:0]} 49. Rh8 {[%emt 0:0:0]} Rg1 {[%emt 0:0:0]} 50. Rc8+ {[%emt 0:0:0]} Kd4 {[%emt 0:1:20]} 51. Rd8+ {[%emt 0:0:0]} Kc4 {[%emt 0:0:4]} 52. Rc8+ {[%emt 0:0:0]} Kd4 {[%emt 0:0:50] ( -> ...b2)} 53. Rd8+ $1 {[%emt 0:0:0]} Ke4 {[%emt 0:0:1][%cal Yb3b2] ( -> ...b2!)} 54. Kc3 {[%emt 0:0:0]} Rg4 {[%emt 0:3:55]} (54... Kxf4 $2 55. Rf8 $19 )({Black should try} 54... Rg3+ $17 55. Kb2 Kxf4 )55. Kxb3 $11 {[%emt 0:0:0] The position is equal.} Rxf4 {[%emt 0:0:3]} (55... Kxf4 $2 56. Rd7 $19 )56. Rg8 {[%emt 0:0:0]} Kxe5 {[%emt 0:0:6] aiming for ...Ke4.} 57. Kc3 {[%emt 0:0:9]} Ra4 {[%emt 0:2:49]} 58. Rg7 $1 {[%emt 0:2:13]} Ra3+ {[%emt 0:0:3]} 59. Kd2 {[%emt 0:1:4]} Ra7 {[%emt 0:0:3]} 60. Kc3 {[%emt 0:0:18]} Ra3+ {[%emt 0:1:53]} 61. Kd2 {[%emt 0:15:7]} Ra2+ {[%emt 0:15:2]} 62. Kd3 {[%emt 0:0:17]} Rf2 {[%emt 0:0:5]} 63. Ke3 {[%emt 0:0:50]} Rf1 {[%emt 0:0:4]} 64. Ke2 {[%emt 0:1:45]} Rf5 {[%emt 0:0:3]} 65. Ke3 {[%emt 0:0:17]} Kd6 {[%emt 0:0:6]} 66. Ke4 {[%emt 0:0:46]} Rf1 {[%emt 0:0:4]} 67. Rh7 {[%emt 0:0:22]} Rf5 {[%emt 0:0:14]} 68. Rg7 {[%emt 0:0:6]} Ke7 {[%emt 0:0:5] And White is the lucky defender.   Weighted Error Value: White=0.11 (very precise) /Black=0.14 (very precise)   Missed win:     	---       	Black=1      Mistake:       	White=3     	Black=1      Inaccurate:     	White=2     	Black=3      OK:         	White=27    	Black=30     Best:        	White=5     	Black=4      Strong:       	White=2     	Black=5} 1/2-1/2

[Event "87th Tata Steel Masters 2025"]
[White "Praggnanandhaa,Rameshbabu"]
[Black "Fedoseev,Vladimir"]
[Site "Wijk aan Zee"]
[Round "10.3"]
[Annotator "TA"]
[Result "1-0"]
[Date "2025.01.29"]
[WhiteElo "2741"]
[BlackElo "2717"]
[PlyCount "89"]
[TimeControl "60"]

{[%evp 12,89,50,43,35,33,86,83,98,85,100,93,132,70,95,92,82,85,111,100,109,74,83,95,85,87,80,73,125,109,131,130,156,156,160,126,141,156,160,64,110,118,151,142,114,111,89,105,91,49,56,0,74,88,160,166,318,322,312,159,166,153,209,200,279,261,279,248,455,372,587,566,859,918,29987,29988,29988,29989,29989,29990]} 1. d4 {[%emt 0:0:14]} d5 {[%emt 0:1:4]} 2. c4 {[%emt 0:0:5]} e6 {[%emt 0:0:6]} 3. Nc3 {[%emt 0:0:5]} c5 {[%emt 0:1:0]} 4. cxd5 {[%emt 0:0:48]} exd5 {[%emt 0:0:8]} 5. Nf3 {[%emt 0:0:9]} Nf6 {[%emt 0:0:7]} 6. Bg5 {[%emt 0:1:12]} Be6 {[%emt 0:0:8]} 7. e3 {[%emt 0:0:11]} c4 {[%emt 0:0:11] 7...c4 is better than 7...Nc6. D32: Tarrasch Defence: Sidelines and lines without g3.} 8. Bxf6 {[%emt 0:0:59]} gxf6 {[%emt 0:17:26]} (8... Qxf6 $14 9. a3 Nc6 )9. g3 $146 {[%emt 0:4:51]} (9. a3 Qa5 10. g3 Nc6 11. Bg2 Be7 12. Ng1 f5 13. Nh3 Bd6 14. O-O Ne7 15. Qc2 {1-0 Poltorak,S (2392)-Yatskar,M (2066) Berlin-ch 2024 (2)} )Bb4 {[%emt 0:7:57] White is better.} 10. Bg2 {[%emt 0:6:4]} Nc6 {[%emt 0:3:15]} 11. O-O {[%emt 0:0:41]} O-O {[%emt 0:4:29]} 12. Ne2 {[%emt 0:7:16][%csl Yf6,Yf7,Yh7] Black has weak pawns} (12. Nh4 $16 )Rc8 {[%emt 0:6:45]} 13. Nh4 {[%emt 0:23:33]} Kh8 {[%emt 0:2:11]} 14. a3 {[%emt 0:17:49]} Be7 {[%emt 0:6:54]} 15. e4 {[%emt 0:4:29]} Rg8 {[%emt 0:18:32]} 16. Re1 {[%emt 0:8:57]} Bf8 {[%emt 0:6:20]} 17. Qc2 {[%emt 0:8:11]} b5 {[%emt 0:3:20]} 18. Rad1 {[%emt 0:2:35]} Ne7 {[%emt 0:3:14][%cal Yc6e7,Ye7d5,Yd5f4][%mdl 32]} 19. Nc3 {[%emt 0:7:50]} a6 {[%emt 0:1:11]} ({Black should play} 19... Qd7 )20. exd5 {[%emt 0:2:8][%csl Yd5] White has a strong passed pawn} Nxd5 {[%emt 0:6:41]} 21. Be4 {[%emt 0:0:48] White is more active.} Nf4 {[%emt 0:4:45]} 22. Bxh7 {[%emt 0:1:39]} Rg5 {[%emt 0:1:47]} 23. Be4 {[%emt 0:2:33][%cal Yd4d5]} Qd7 {[%emt 0:4:34]} 24. Kh1 {[%emt 0:2:28]} Rh5 {[%emt 0:0:23]} 25. Bf3 {[%emt 0:2:22]} (25. f3 $1 $16 )Rh6 {[%emt 0:2:19]} (25... Bg4 $1 $14 {was preferable.} 26. Qe4 Bd6 )26. d5 {[%emt 0:1:2]} Bh3 {[%emt 0:0:32][%cal Yf6f5]} 27. Be4 $1 {[%emt 0:4:12]} Rh5 {[%emt 0:2:15] Dodges Bf5} 28. Ne2 {[%emt 0:0:16]} Nxe2 {[%emt 0:4:15]} 29. Qxe2 {[%emt 0:0:7]} Re5 {[%emt 0:0:2] And now ...Rce8 would win.} 30. f4 {[%emt 0:1:14]} Bg4 {[%emt 0:0:32]} 31. Qf1 {[%emt 0:0:35]} (31. Qg2 $14 Ree8 32. Bf3 )Rh5 {[%emt 0:2:23]} (31... Rxe4 $1 $11 32. Rxe4 Bxd1 33. Qxd1 Kg8 )32. Bf3 $36 {[%emt 0:0:2][%cal Yd5d6][%mdl 2048] White is in control.} c3 {[%emt 0:0:5]} (32... Bh3 $142 33. Qf2 Rh6 )33. bxc3 {[%emt 0:0:41]} Rxc3 $2 {[%emt 0:0:6]} (33... Bd6 34. Qe2 Bxf3+ 35. Qxf3 Rh7 )34. Bxg4 $18 {[%emt 0:0:45]} Qxg4 {[%emt 0:0:16]} 35. Qe2 {[%emt 0:0:36]} ({Only move:} 35. d6 $18 {Black must now prevent d7.} Qd7 36. Qe2 Qc6+ 37. Ng2 )Qxe2 $16 {[%emt 0:1:2]} 36. Rxe2 {[%emt 0:0:1]} Bd6 {[%emt 0:0:6]} (36... Rc7 $16 )37. Re8+ $1 $18 {[%emt 0:0:21]} Kh7 {[%emt 0:0:46][%cal Yf6f5]} 38. Rd8 {[%emt 0:0:31]} Bxf4 {[%emt 0:0:19]} 39. d6 {[%emt 0:0:48]} Bxg3 $2 {[%emt 0:1:13] [#]} (39... Rc1 {might work better.} 40. Rxc1 Bxc1 )40. d7 $1 {[%emt 0:0:46]} (40. hxg3 Rxg3 41. Rd4 (41. Kh2 $2 Rg4 $17 )Rh3+ (41... Rxa3 $2 42. d7 $18 )42. Kg2 R3xh4 (42... R5xh4 43. Rd1 $11 )43. Rxh4 Rxh4 $11 )Rxh4 {[%emt 0:1:20] [#]} (40... Bxh4 $2 41. Rc8 f5 42. Rxc3 $18 )(40... Bxh2 $142 41. Rh8+ Kxh8 42. d8=Q+ (42. d8=B $2 Be5 $19 )Kg7 )41. Rc8 $1 {[%emt 0:2:25]} ({Not} 41. Rh8+ $2 Kxh8 42. d8=Q+ Kg7 $19 )Rxh2+ {[%emt 0:18:59]} 42. Kg1 {[%emt 0:0:14]} Rxa3 {[%emt 0:0:5]} 43. d8=Q {[%emt 0:0:18] White mates.} (43. d8=R $2 Rb2 44. Rh8+ Kg6 $17 )Be5 {[%emt 0:0:6]} 44. Qg8+ {[%emt 0:0:48]} Kh6 {[%emt 0:0:59]} 45. Qf8+ {[%emt 0:0:4] Weighted Error Value: White=0.15 (very precise) /Black=0.54  Mistake:       	White=4     	Black=9      Inaccurate:     	White=2     	Black=5      OK:         	White=12    	Black=10     Best:        	White=3     	Black=2      Strong:       	White=4     	---} ({And not} 45. Qxf7 Rg3+ 46. Kf1 Rh1+ 47. Ke2 Rh2+ 48. Kf1 Rh1+ 49. Kf2 Rh2+ 50. Kf1 $11 )1-0

[Event "87th Tata Steel Masters 2025"]
[White "Warmerdam,Max"]
[Black "Gukesh,Dommaraju"]
[Site "Wijk aan Zee"]
[Round "10.4"]
[Annotator "TA"]
[Result "0-1"]
[Date "2025.01.29"]
[WhiteElo "2646"]
[BlackElo "2777"]
[PlyCount "68"]
[TimeControl "60"]

{[%evp 12,68,27,30,49,46,50,31,50,45,43,35,31,27,33,15,20,17,15,0,0,0,28,21,66,0,49,42,62,0,0,0,0,0,0,-2,0,-26,-25,-42,-43,-54,-84,-41,-37,-360,-368,-360,-367,-375,-364,-348,-353,-380,-352,-350,-240,-232,-192]} 1. e4 {[%emt 0:0:4]} d6 {[%emt 0:0:7]} 2. g3 {[%emt 0:0:58]} c5 {[%emt 0:4:54]} 3. Bg2 {[%emt 0:0:25]} g6 {[%emt 0:4:11]} 4. c3 {[%emt 0:2:48]} Bg7 {[%emt 0:1:37]} 5. Ne2 {[%emt 0:1:55]} Nc6 {[%emt 0:4:55]} 6. d4 {[%emt 0:1:14]} cxd4 {[%emt 0:2:40]} 7. cxd4 {[%emt 0:0:42]} Nf6 {[%emt 0:0:6] B20: Sicilian: Unusual White 2nd moves.} 8. Nbc3 {[%emt 0:5:53]} O-O {[%emt 0:0:32]} 9. h3 {[%emt 0:3:1]} Bd7 {[%emt 0:4:31] White is slightly better.} 10. O-O {[%emt 0:2:29]} Rb8 {[%emt 0:5:58]} 11. Be3 {[%emt 0:14:21]} b5 {[%emt 0:4:13][%cal Yb7b5,Yb5b4][%mdl 32]} 12. b3 $146 {[%emt 0:8:14]} (12. d5 Ne5 13. Bxa7 b4 14. Nb1 Ra8 15. Bd4 Qc8 16. Kh2 Bb5 17. Bxe5 dxe5 18. Nd2 {1-0 Bartel,M (2252)-Mazurkiewicz,M (2145) Titled Tuesday intern op 12th Mar Early blitz 2024 (5)} )b4 {[%emt 0:18:14]} 13. Na4 {[%emt 0:2:8]} e6 {[%emt 0:4:33]} 14. Nb2 {[%emt 0:6:6]} a5 {[%emt 0:3:3]} 15. a4 {[%emt 0:4:21]} bxa3 {[%emt 0:2:39]} 16. Rxa3 {[%emt 0:1:25]} Nb4 {[%emt 0:0:59]} 17. Nc3 {[%emt 0:2:3]} Bb5 {[%emt 0:11:5]} 18. Re1 {[%emt 0:8:43]} (18. Nxb5 $14 Rxb5 19. Qe2 )d5 {[%emt 0:1:45]} (18... Ba6 $11 )19. e5 $14 {[%emt 0:1:25][%cal Yc3b5] Black must now prevent Nxb5!.} Nd7 {[%emt 0:2:1]} 20. Qd2 {[%emt 0:3:5]} ({Better is} 20. Nxb5 $14 Rxb5 21. Qd2 )Ba6 $11 {[%emt 0:5:43]} 21. Rc1 {[%emt 0:5:56]} Rc8 {[%emt 0:2:21]} 22. Raa1 {[%emt 0:13:57]} Qb6 {[%emt 0:3:33]} 23. Nca4 {[%emt 0:3:6]} Qb8 {[%emt 0:0:22]} 24. Bf1 {[%emt 0:3:25]} Bxf1 {[%emt 0:0:24]} 25. Kxf1 {[%emt 0:0:4]} f6 {[%emt 0:9:0]} 26. exf6 {[%emt 0:0:52]} Nxf6 {[%emt 0:0:2] ...Ne4 would now be deadly.} 27. Rxc8 {[%emt 0:4:17]} Qxc8 {[%emt 0:0:32]} 28. Rc1 $2 {[%emt 0:5:17][%mdl 8192] [#] This costs White the game.} (28. Nc3 $1 $15 )Ne4 $1 $19 {[%emt 0:0:20]} 29. Qd1 {[%emt 0:0:33] [#]} Qb8 {[%emt 0:4:14]} (29... Nxg3+ 30. Kg2 Qe8 31. fxg3 $18 )30. Kg1 {[%emt 0:5:40] [#]} Nxg3 $1 {[%emt 0:1:34][%cal Yh7h5][%mdl 512]} 31. Nc5 {[%emt 0:0:17][%cal Yc5d7]} (31. Qg4 Nf5 )Nf5 {[%emt 0:1:44]} 32. Qg4 {[%emt 0:0:29]} Qe8 {[%emt 0:1:28] Prevents Nd7.} 33. Nbd3 {[%emt 0:0:27]} Nc6 {[%emt 0:1:45][%cal Rc6d4]} 34. Nf4 {[%emt 0:0:49]} Bxd4 {[%emt 0:2:23] Weighted Error Value: White=0.27 (precise) /Black=0.13 (very precise)   Loses game:     	White=1     	---        Mistake:       	White=2     	Black=1      Inaccurate:     	White=1     	Black=3      OK:         	White=8     	Black=12     Best:        	White=1     	Black=1      Strong:       	---       	Black=1      Brilliant:      	---       	Black=1} 0-1

[Event "87th Tata Steel Masters 2025"]
[White "Abdusattorov,Nodirbek"]
[Black "Sarana,Alexey"]
[Site "Wijk aan Zee"]
[Round "10.5"]
[Annotator "TA"]
[Result "1-0"]
[Date "2025.01.29"]
[WhiteElo "2768"]
[BlackElo "2677"]
[PlyCount "101"]
[TimeControl "60"]

{[%evp 10,101,33,16,14,10,4,10,14,5,31,0,2,0,19,-3,16,25,10,-31,-20,-18,-36,-46,0,0,-7,-27,-25,-32,-29,-12,-22,-44,-55,-41,-50,-62,-22,-19,-27,-25,-25,-23,0,-77,-75,-87,-50,-53,0,-45,-52,-145,0,0,0,0,0,0,62,56,56,0,0,0,0,0,41,39,680,639,662,610,604,601,565,526,29982,29983,29983,29984,29984,29985,29986,29987,29987,29988,29987,29983,29984,29985,29979,29978]} 1. e4 {[%emt 0:0:13]} c5 {[%emt 0:0:8]} 2. Nf3 {[%emt 0:0:25]} d6 {[%emt 0:0:5]} 3. d4 {[%emt 0:0:31]} cxd4 {[%emt 0:0:6]} 4. Nxd4 {[%emt 0:0:6]} Nf6 {[%emt 0:0:7]} 5. Nc3 {[%emt 0:0:15]} a6 {[%emt 0:0:6]} 6. Nb3 {[%emt 0:0:29]} e6 {[%emt 0:1:16] B90: Sicilian Najdorf: Unusual White 6th moves, 6 Be3 Ng4 and 6 Be3 e5.} 7. g4 {[%emt 0:0:20][%cal Yg2g4,Yg4g5][%mdl 32]} b5 {[%emt 0:0:19]} 8. a3 {[%emt 0:0:0]} Bb7 {[%emt 0:8:5] The position is equal.} 9. Bg2 {[%emt 0:0:12]} Nc6 {[%emt 0:1:42]} 10. g5 {[%emt 0:1:16]} Nd7 {[%emt 0:0:4]} 11. h4 {[%emt 0:1:52]} Rc8 {[%emt 0:8:11]} 12. Qe2 {[%emt 0:2:27]} Be7 {[%emt 0:2:42]} 13. f4 {[%emt 0:3:5]} h6 $146 {[%emt 0:3:51]} (13... Nc5 14. Be3 b4 15. axb4 Nxb3 16. cxb3 Nxb4 17. O-O O-O 18. f5 exf5 19. exf5 Bxg2 20. Qxg2 Re8 21. Bd4 d5 22. f6 Bc5 23. Bxc5 Rxc5 24. fxg7 Re3 25. Rxf7 {½-½ Matozo,P (2176)-Kaupert,V (2289) BRA/CUP28/SF01 2017} )14. O-O {[%emt 0:13:27]} hxg5 {[%emt 0:2:2]} 15. hxg5 {[%emt 0:0:4]} Nb6 {[%emt 0:4:43]} 16. a4 {[%emt 0:0:30]} Nc4 {[%emt 0:10:46]} (16... b4 $15 {was preferable.} 17. Nd1 Nd7 )17. axb5 {[%emt 0:1:23] A sharp opening} axb5 {[%emt 0:0:2]} 18. Qf2 {[%emt 0:3:50]} (18. Rf2 {looks sharper.} Qb6 19. Nd1 Kf8 20. c3 )b4 {[%emt 0:0:50]} 19. Nd1 {[%emt 0:0:6]} Ra8 {[%emt 0:12:47]} 20. Rxa8 {[%emt 0:11:32]} Qxa8 {[%emt 0:0:2]} 21. Nd2 {[%emt 0:2:54]} Nxd2 {[%emt 0:5:34]} 22. Bxd2 {[%emt 0:0:7]} Bd8 {[%emt 0:18:41]} (22... Ba6 $5 23. Re1 $8 O-O $11 )23. b3 {[%emt 0:11:59]} Qa5 {[%emt 0:0:0]} (23... Ba6 $5 24. Re1 $8 Qb7 $11 )24. Be3 $1 {[%emt 0:18:34]} Ba6 {[%emt 0:0:0]} 25. Re1 {[%emt 0:0:12]} e5 {[%emt 0:0:0]} 26. Qd2 {[%emt 0:14:11]} Bc7 {[%emt 0:15:41]} 27. f5 {[%emt 0:0:0] [#]} (27. Qd5 $11 Bb7 28. fxe5 Qxd5 29. exd5 Nxe5 30. Nf2 )Nd4 $1 $17 {[%emt 0:0:49]} 28. Bf2 {[%emt 0:8:45][%cal Yd1e3]} (28. Bxd4 exd4 )Rh5 {[%emt 0:4:11]} 29. g6 {[%emt 0:0:0]} Bd8 {[%emt 0:4:26]} (29... Bb6 $15 )30. gxf7+ {[%emt 0:0:0]} Kxf7 {[%emt 0:0:0]} 31. Ne3 {[%emt 0:4:46]} (31. Nb2 $1 $15 )Bg5 {[%emt 0:2:46]} (31... Bh4 $1 $17 {aiming for ...Qc5.} 32. Nd5 Qc5 )32. Qd1 $11 {[%emt 0:1:49]} Rh8 {[%emt 0:1:16]} 33. Qg4 $36 {[%emt 0:2:46][%mdl 2048] Black is under pressure.} Qd8 {[%emt 0:0:31]} 34. Nd5 {[%emt 0:0:0] Threatens to win with Bxd4. Some like it hot} Rh6 {[%emt 0:5:15]} ({Black should try} 34... Bb7 $1 $11 )35. Bxd4 $14 {[%emt 0:0:0]} (35. Nxb4 Bd2 36. Ra1 (36. Nxa6 Bxe1 37. Bxe1 Qb6 $15 )Ne2+ 37. Kf1 Ng3+ 38. Kg1 Ne2+ 39. Kf1 Ng3+ 40. Kg1 Ne2+ $11 )exd4 {[%emt 0:3:32]} 36. e5 {[%emt 0:1:2]} (36. Nxb4 $6 d3 37. Nxd3 (37. Nxa6 $2 Qb6+ 38. Kf1 Bh4 $19 )Bxd3 38. cxd3 Qb6+ 39. Kf1 Bh4 $11 )({White should try} 36. Ra1 $1 $14 d3 37. cxd3 (37. Rxa6 $2 dxc2 38. Ra7+ Kf8 $19 )Bxd3 38. Ra2 (38. Nxb4 $2 Be3# ))dxe5 $11 {[%emt 0:0:0]} 37. Rxe5 {[%emt 0:0:0]} Qd6 {[%emt 0:1:47]} 38. Qxd4 {[%emt 0:1:35]} Bf6 {[%emt 0:2:9] This pair of bishops is nice.} 39. Qa7+ {[%emt 0:3:1]} (39. Qxb4 $2 {too greedy.} Qxe5 (39... Bxe5 $2 40. Kf2 $19 )(39... Qxb4 $2 40. Nxb4 Bxe5 41. Bd5+ Ke7 42. c4 $19 )40. Qe4 Qh2+ 41. Kf2 Bh4+ (41... Qh4+ $2 42. Qxh4 Rxh4 43. c4 $19 )42. Ke3 Qg1+ 43. Kf4 Bf1 $19 (43... Bb7 $2 44. Kg4 $19 ))Kf8 $2 {[%emt 0:5:33][%mdl 8192] Black cannot hold the game after this.} (39... Kg8 $14 40. Nxf6+ Rxf6 41. Re8+ Kh7 )40. Nxf6 $18 {[%emt 0:5:40][%csl Gf6][%cal Re5e8]} Qd1+ {[%emt 0:0:0]} 41. Kf2 {[%emt 0:8:38][%csl Gf6][%cal Re5e8,Yg1f2,Yf2g3,Yg3f4,Yf4g4,Yg4f4,Yf4e4,Ye4d5,Yd5c6][%mdl 32]} Qxc2+ {[%emt 0:0:0]} 42. Kg3 {[%emt 0:1:45][%csl Gf6][%cal Re5e8]} Rxf6 {[%emt 0:6:7] [#]} 43. Bd5 {[%emt 0:14:35][%csl Ge5][%cal Ra7e7]} ({Inferior is} 43. Qe7+ Kg8 $14 )Qd3+ {[%emt 0:12:15] [#]} 44. Re3 $1 {[%emt 0:0:0][%csl Ge3][%cal Ra7e7] White mates.} Rg6+ {[%emt 0:0:6]} 45. Kf4 {[%emt 0:4:15][%csl Gd5][%cal Ra7f7]} Qf1+ {[%emt 0:1:32]} 46. Bf3 {[%emt 0:0:0]} Rg4+ {[%emt 0:0:5]} 47. Kxg4 {[%emt 0:0:0]} Qg1+ {[%emt 0:0:3]} 48. Kf4 {[%emt 0:0:0]} Qh2+ {[%emt 0:0:3]} 49. Ke4 {[%emt 0:0:0]} Qh4+ {[%emt 0:0:24]} 50. Kd5 {[%emt 0:0:0]} Qd8+ {[%emt 0:0:50]} 51. Kc6 {[%emt 0:0:0] Weighted Error Value: White=0.10 (very precise) /Black=0.36  Loses game:     	---       	Black=1      Mistake:       	White=3     	Black=4      Inaccurate:     	White=3     	Black=3      OK:         	White=8     	Black=13     Best:        	White=4     	Black=2      Strong:       	White=2     	---} 1-0